[Event "Titled Tuesday Blitz November 01 Early 2022"]
[White "Celestino, Rafael Teixeira"]
[Black "Tarasova, Viktoriya"]
[WhiteFideId "2108925"]
[BlackFideId "4175840"]
[WhiteElo "2421"]
[BlackElo "2182"]
[Result "0-1"]
[Round "10"]
[TimeControl "180+1"]
[Date "2022.11.02"]
[WhiteClock "0:00:20"]
[BlackClock "0:00:11"]

1. e4 {[%clk 0:03:00]}  c5 {[%clk 0:02:57]} 2. Nf3 {[%clk 0:03:00]}  d6 {[%clk 0:02:56]} 3. d4 {[%clk 0:02:59]}  cxd4 {[%clk 0:02:56]} 4. Nxd4 {[%clk 0:03:00]}  Nf6 {[%clk 0:02:56]} 5. Nc3 {[%clk 0:03:00]}  a6 {[%clk 0:02:56]} 6. Bg5 {[%clk 0:03:01]}  e6 {[%clk 0:02:56]} 7. Qd2 {[%clk 0:03:00]}  Qb6 {[%clk 0:02:55]} 8. Bxf6 {[%clk 0:02:59]}  gxf6 {[%clk 0:02:55]} 9. O-O-O {[%clk 0:02:57]}  h5 {[%clk 0:02:52]} 10. f4 {[%clk 0:02:56]}  h4 {[%clk 0:02:51]} 11. Be2 {[%clk 0:02:53]}  Nc6 {[%clk 0:02:50]} 12. Nf3 {[%clk 0:02:45]}  Bd7 {[%clk 0:02:47]} 13. g3 {[%clk 0:02:45]}  h3 {[%clk 0:02:40]} 14. Bd3 {[%clk 0:02:18]}  O-O-O {[%clk 0:02:39]} 15. f5 {[%clk 0:02:19]}  Bh6 {[%clk 0:02:37]} 16. Kb1 {[%clk 0:02:14]}  Bxd2 {[%clk 0:02:36]} 17. Nxd2 {[%clk 0:02:14]}  Qc7 {[%clk 0:02:34]} 18. Nc4 {[%clk 0:02:13]}  Ne5 {[%clk 0:02:29]} 19. Ne3 {[%clk 0:02:09]}  Kb8 {[%clk 0:02:24]} 20. Ne2 {[%clk 0:02:06]}  Bc6 {[%clk 0:02:17]} 21. fxe6 {[%clk 0:02:02]}  fxe6 {[%clk 0:02:17]} 22. Nd4 {[%clk 0:02:01]}  Qe7 {[%clk 0:02:14]} 23. Rhf1 {[%clk 0:01:59]}  Rdf8 {[%clk 0:02:11]} 24. c4 {[%clk 0:01:45]}  Bd7 {[%clk 0:02:10]} 25. Bc2 {[%clk 0:01:44]}  Rc8 {[%clk 0:02:07]} 26. b3 {[%clk 0:01:43]}  b5 {[%clk 0:02:05]} 27. cxb5 {[%clk 0:01:42]}  axb5 {[%clk 0:02:06]} 28. Rc1 {[%clk 0:01:36]}  Rc3 {[%clk 0:02:04]} 29. Nd1 {[%clk 0:01:35]}  Rc7 {[%clk 0:02:03]} 30. b4 {[%clk 0:01:32]}  Rhc8 {[%clk 0:02:02]} 31. Nb3 {[%clk 0:01:30]}  Nc4 {[%clk 0:02:01]} 32. Bd3 {[%clk 0:01:21]}  Nd2+ {[%clk 0:01:54]} 33. Nxd2 {[%clk 0:01:20]}  Rxc1+ {[%clk 0:01:54]} 34. Kb2 {[%clk 0:01:21]}  d5 {[%clk 0:01:51]} 35. a3 {[%clk 0:01:19]}  Qd6 {[%clk 0:01:45]} 36. Nb3 {[%clk 0:01:15]}  Qe5+ {[%clk 0:01:42]} 37. Ka2 {[%clk 0:01:13]}  dxe4 {[%clk 0:01:27]} 38. Bb1 {[%clk 0:01:04]}  R1c2+ {[%clk 0:00:52]} 39. Bxc2 {[%clk 0:01:02]}  Rxc2+ {[%clk 0:00:53]} 40. Kb1 {[%clk 0:01:02]}  Rxh2 {[%clk 0:00:49]} 41. Nc5 {[%clk 0:00:59]}  Bc8 {[%clk 0:00:49]} 42. g4 {[%clk 0:00:51]}  e3 {[%clk 0:00:48]} 43. Re1 {[%clk 0:00:50]}  e2 {[%clk 0:00:45]} 44. Nb2 {[%clk 0:00:51]}  Qd5 {[%clk 0:00:29]} 45. Kc2 {[%clk 0:00:48]}  e5 {[%clk 0:00:27]} 46. a4 {[%clk 0:00:43]}  Bxg4 {[%clk 0:00:26]} 47. axb5 {[%clk 0:00:40]}  Bf5+ {[%clk 0:00:26]} 48. Kc3 {[%clk 0:00:39]}  Qd4+ {[%clk 0:00:26]} 49. Kb3 {[%clk 0:00:39]}  Qd2 {[%clk 0:00:20]} 50. Na6+ {[%clk 0:00:35]}  Ka7 {[%clk 0:00:19]} 51. Rg1 {[%clk 0:00:34]}  Qe3+ {[%clk 0:00:19]} 52. Ka4 {[%clk 0:00:31]}  Qxg1 {[%clk 0:00:19]} 53. Nc5 {[%clk 0:00:25]}  e1=Q {[%clk 0:00:18]} 54. b6+ {[%clk 0:00:26]}  Kxb6 {[%clk 0:00:16]} 55. Nc4+ {[%clk 0:00:26]}  Kc7 {[%clk 0:00:17]} 56. Kb5 {[%clk 0:00:24]}  Qgf1 {[%clk 0:00:15]} 57. Na6+ {[%clk 0:00:23]}  Kd8 {[%clk 0:00:15]} 58. Nb8 {[%clk 0:00:22]}  Qc3 {[%clk 0:00:14]} 59. Nc6+ {[%clk 0:00:22]}  Ke8 {[%clk 0:00:15]} 60. Na5 {[%clk 0:00:23]}  Bd7+ {[%clk 0:00:14]} 61. Kb6 {[%clk 0:00:23]}  Qf2+ {[%clk 0:00:14]} 62. Kb7 {[%clk 0:00:21]}  Qff3+ {[%clk 0:00:13]} 63. Kb6 {[%clk 0:00:21]}  Qd4+ {[%clk 0:00:13]} 64. Kc7 {[%clk 0:00:20]}  Qa7+ {[%clk 0:00:12]} 65. Kd6 {[%clk 0:00:20]}  Qd3# {[%clk 0:00:11]} 0-1


[Site "https://www.chess.com"]

[Event "Titled Tuesday Blitz November 01 Early 2022"]
[White "Chernobay, Artem"]
[Black "Mekhitarian, Krikor Sevag"]
[WhiteFideId "4167406"]
[BlackFideId "2107660"]
[WhiteElo "2473"]
[BlackElo "2614"]
[Result "1-0"]
[Round "10"]
[TimeControl "180+1"]
[Date "2022.11.02"]
[WhiteClock "0:00:05"]
[BlackClock "0:00:02"]

1. e4 {[%clk 0:03:00]}  c5 {[%clk 0:02:54]} 2. Nf3 {[%clk 0:02:59]}  e6 {[%clk 0:02:53]} 3. d4 {[%clk 0:02:58]}  cxd4 {[%clk 0:02:54]} 4. Nxd4 {[%clk 0:02:59]}  a6 {[%clk 0:02:52]} 5. Bd3 {[%clk 0:02:56]}  Ne7 {[%clk 0:02:52]} 6. O-O {[%clk 0:02:55]}  Nbc6 {[%clk 0:02:51]} 7. Be3 {[%clk 0:02:44]}  Qc7 {[%clk 0:02:43]} 8. c4 {[%clk 0:02:34]}  Ng6 {[%clk 0:02:43]} 9. Nc3 {[%clk 0:02:32]}  Bd6 {[%clk 0:02:42]} 10. h3 {[%clk 0:02:28]}  Bh2+ {[%clk 0:02:33]} 11. Kh1 {[%clk 0:02:28]}  Be5 {[%clk 0:02:34]} 12. Nde2 {[%clk 0:02:20]}  Nf4 {[%clk 0:02:27]} 13. Rc1 {[%clk 0:02:18]}  g5 {[%clk 0:02:26]} 14. Nd5 {[%clk 0:01:44]}  exd5 {[%clk 0:02:17]} 15. cxd5 {[%clk 0:01:45]}  Qd6 {[%clk 0:01:50]} 16. Bxf4 {[%clk 0:01:38]}  gxf4 {[%clk 0:01:48]} 17. dxc6 {[%clk 0:01:35]}  dxc6 {[%clk 0:01:49]} 18. Ng1 {[%clk 0:01:29]}  Be6 {[%clk 0:01:45]} 19. Bc4 {[%clk 0:01:24]}  Qxd1 {[%clk 0:01:35]} 20. Rfxd1 {[%clk 0:01:25]}  Bxb2 {[%clk 0:01:35]} 21. Rc2 {[%clk 0:01:14]}  Bxc4 {[%clk 0:01:30]} 22. Rxc4 {[%clk 0:01:11]}  Be5 {[%clk 0:01:24]} 23. Nf3 {[%clk 0:01:09]}  Bc7 {[%clk 0:01:12]} 24. e5 {[%clk 0:01:07]}  Ke7 {[%clk 0:01:06]} 25. Rxf4 {[%clk 0:01:05]}  Rhd8 {[%clk 0:01:06]} 26. Rb1 {[%clk 0:01:02]}  b5 {[%clk 0:01:06]} 27. Nd4 {[%clk 0:00:58]}  Bxe5 {[%clk 0:01:03]} 28. Nxc6+ {[%clk 0:00:57]}  Kd6 {[%clk 0:01:03]} 29. Nxe5 {[%clk 0:00:52]}  Kxe5 {[%clk 0:01:03]} 30. Rxf7 {[%clk 0:00:53]}  Rd2 {[%clk 0:01:03]} 31. Rxh7 {[%clk 0:00:46]}  Rxf2 {[%clk 0:00:55]} 32. a4 {[%clk 0:00:39]}  bxa4 {[%clk 0:00:55]} 33. Rh5+ {[%clk 0:00:29]}  Kf6 {[%clk 0:00:49]} 34. Ra5 {[%clk 0:00:25]}  Rf4 {[%clk 0:00:34]} 35. Rb6+ {[%clk 0:00:23]}  Ke7 {[%clk 0:00:29]} 36. Raxa6 {[%clk 0:00:21]}  Rxa6 {[%clk 0:00:29]} 37. Rxa6 {[%clk 0:00:22]}  Kd7 {[%clk 0:00:30]} 38. Kh2 {[%clk 0:00:22]}  Kc7 {[%clk 0:00:30]} 39. Kg3 {[%clk 0:00:22]}  Kb7 {[%clk 0:00:17]} 40. Ra5 {[%clk 0:00:20]}  Kb6 {[%clk 0:00:16]} 41. Ra8 {[%clk 0:00:20]}  Kb7 {[%clk 0:00:14]} 42. Re8 {[%clk 0:00:17]}  Rb4 {[%clk 0:00:08]} 43. h4 {[%clk 0:00:14]}  a3 {[%clk 0:00:08]} 44. Re1 {[%clk 0:00:14]}  a2 {[%clk 0:00:05]} 45. Ra1 {[%clk 0:00:14]}  Ra4 {[%clk 0:00:05]} 46. h5 {[%clk 0:00:12]}  Kc6 {[%clk 0:00:05]} 47. h6 {[%clk 0:00:12]}  Ra7 {[%clk 0:00:05]} 48. Kh4 {[%clk 0:00:10]}  Kd6 {[%clk 0:00:04]} 49. Kh5 {[%clk 0:00:10]}  Ke5 {[%clk 0:00:04]} 50. g4 {[%clk 0:00:10]}  Ra3 {[%clk 0:00:04]} 51. h7 {[%clk 0:00:09]}  Kf4 {[%clk 0:00:01]} 52. g5 {[%clk 0:00:06]}  Rh3+ {[%clk 0:00:02]} 53. Kg6 {[%clk 0:00:06]}  Rh2 {[%clk 0:00:01]} 54. Rxa2 {[%clk 0:00:05]}  Rxa2 {[%clk 0:00:01]} 55. h8=Q {[%clk 0:00:04]}  Ra6+ {[%clk 0:00:02]} 56. Kh5 {[%clk 0:00:05]} 1-0


[Site "https://www.chess.com"]

[Event "Titled Tuesday Blitz November 01 Early 2022"]
[White "Durarbayli, Vasif"]
[Black "Kosteniuk, Alexandra"]
[WhiteFideId "13402935"]
[BlackFideId "4128125"]
[WhiteElo "2586"]
[BlackElo "2469"]
[Result "1-0"]
[Round "10"]
[TimeControl "180+1"]
[Date "2022.11.01"]
[WhiteClock "0:00:04"]
[BlackClock "0:00:02"]

1. e4 {[%clk 0:03:00]}  e5 {[%clk 0:02:58]} 2. Nf3 {[%clk 0:03:00]}  Nf6 {[%clk 0:02:57]} 3. Nc3 {[%clk 0:02:57]}  Nc6 {[%clk 0:02:57]} 4. a4 {[%clk 0:02:57]}  Bb4 {[%clk 0:02:32]} 5. Nd5 {[%clk 0:02:54]}  Nxd5 {[%clk 0:02:22]} 6. exd5 {[%clk 0:02:54]}  Ne7 {[%clk 0:02:21]} 7. Nxe5 {[%clk 0:02:36]}  Nxd5 {[%clk 0:02:19]} 8. Bc4 {[%clk 0:02:09]}  c6 {[%clk 0:02:14]} 9. Bxd5 {[%clk 0:01:52]}  cxd5 {[%clk 0:02:13]} 10. Qg4 {[%clk 0:01:52]}  Qf6 {[%clk 0:02:00]} 11. Qxb4 {[%clk 0:01:48]}  Qxe5+ {[%clk 0:01:56]} 12. Kd1 {[%clk 0:01:48]}  Qh5+ {[%clk 0:01:31]} 13. g4 {[%clk 0:01:46]}  Qh4 {[%clk 0:01:23]} 14. d3 {[%clk 0:01:10]}  d6 {[%clk 0:01:15]} 15. Re1+ {[%clk 0:01:07]}  Be6 {[%clk 0:01:11]} 16. Qb5+ {[%clk 0:00:49]}  Kf8 {[%clk 0:01:01]} 17. Be3 {[%clk 0:00:32]}  d4 {[%clk 0:00:45]} 18. Qxb7 {[%clk 0:00:20]}  Re8 {[%clk 0:00:40]} 19. Bd2 {[%clk 0:00:16]}  Qxg4+ {[%clk 0:00:28]} 20. f3 {[%clk 0:00:13]}  Qg2 {[%clk 0:00:27]} 21. Qxa7 {[%clk 0:00:10]}  Qxf3+ {[%clk 0:00:24]} 22. Kc1 {[%clk 0:00:11]}  h5 {[%clk 0:00:25]} 23. Qxd4 {[%clk 0:00:10]}  Kg8 {[%clk 0:00:16]} 24. a5 {[%clk 0:00:10]}  Rc8 {[%clk 0:00:14]} 25. a6 {[%clk 0:00:09]}  Bd5 {[%clk 0:00:11]} 26. a7 {[%clk 0:00:08]}  Ba8 {[%clk 0:00:10]} 27. Rg1 {[%clk 0:00:06]}  f6 {[%clk 0:00:10]} 28. Ra5 {[%clk 0:00:04]}  Kh7 {[%clk 0:00:09]} 29. Bc3 {[%clk 0:00:03]}  Rhe8 {[%clk 0:00:08]} 30. Kb1 {[%clk 0:00:03]}  Re5 {[%clk 0:00:07]} 31. Qxd6 {[%clk 0:00:03]}  Rxa5 {[%clk 0:00:07]} 32. Bxa5 {[%clk 0:00:04]}  Qf5 {[%clk 0:00:06]} 33. Qg3 {[%clk 0:00:03]}  g5 {[%clk 0:00:04]} 34. Bc3 {[%clk 0:00:04]}  Kg6 {[%clk 0:00:04]} 35. h4 {[%clk 0:00:03]}  g4 {[%clk 0:00:03]} 36. Qe1 {[%clk 0:00:03]}  Qb5 {[%clk 0:00:03]} 37. Rf1 {[%clk 0:00:04]}  Rc6 {[%clk 0:00:03]} 38. Qe7 {[%clk 0:00:04]}  Rb6 {[%clk 0:00:02]} 39. Rxf6+ {[%clk 0:00:03]}  Rxf6 {[%clk 0:00:02]} 40. Qxf6+ {[%clk 0:00:03]}  Kh7 {[%clk 0:00:02]} 41. Qg7# {[%clk 0:00:04]} 1-0


[Site "https://www.chess.com"]

[Event "Titled Tuesday Blitz November 01 Early 2022"]
[White "Dushyant Sharma"]
[Black "Ibadov, Dashgyn"]
[WhiteFideId "25065130"]
[BlackFideId "24107514"]
[WhiteElo "2270"]
[BlackElo "2208"]
[Result "0-1"]
[Round "10"]
[TimeControl "180+1"]
[Date "2022.11.02"]
[WhiteClock "0:00:10"]
[BlackClock "0:01:26"]

1. e4 {[%clk 0:02:00]}  e6 {[%clk 0:02:55]} 2. d4 {[%clk 0:01:57]}  d5 {[%clk 0:02:56]} 3. exd5 {[%clk 0:01:56]}  exd5 {[%clk 0:02:56]} 4. Bd3 {[%clk 0:01:54]}  c5 {[%clk 0:02:55]} 5. c3 {[%clk 0:01:54]}  Nf6 {[%clk 0:02:55]} 6. Nf3 {[%clk 0:01:54]}  Bd6 {[%clk 0:02:55]} 7. O-O {[%clk 0:01:54]}  O-O {[%clk 0:02:55]} 8. Be3 {[%clk 0:01:53]}  cxd4 {[%clk 0:02:48]} 9. cxd4 {[%clk 0:01:52]}  Nc6 {[%clk 0:02:42]} 10. Nc3 {[%clk 0:01:51]}  Bg4 {[%clk 0:02:41]} 11. h3 {[%clk 0:01:49]}  Bh5 {[%clk 0:02:40]} 12. Be2 {[%clk 0:01:47]}  Re8 {[%clk 0:02:31]} 13. Qb3 {[%clk 0:01:46]}  Na5 {[%clk 0:02:30]} 14. Qa4 {[%clk 0:01:42]}  Nc4 {[%clk 0:02:22]} 15. Nxd5 {[%clk 0:01:17]}  Nxd5 {[%clk 0:02:13]} 16. Bxc4 {[%clk 0:01:11]}  Bxf3 {[%clk 0:02:13]} 17. gxf3 {[%clk 0:00:57]}  Nxe3 {[%clk 0:02:10]} 18. fxe3 {[%clk 0:00:53]}  Qg5+ {[%clk 0:02:08]} 19. Kh1 {[%clk 0:00:34]}  Qg3 {[%clk 0:02:07]} 20. Qc2 {[%clk 0:00:33]}  Qxh3+ {[%clk 0:01:58]} 21. Kg1 {[%clk 0:00:34]}  Rxe3 {[%clk 0:01:57]} 22. Qg2 {[%clk 0:00:29]}  Qh4 {[%clk 0:01:50]} 23. Bd5 {[%clk 0:00:17]}  Rae8 {[%clk 0:01:46]} 24. Rac1 {[%clk 0:00:15]}  Qxd4 {[%clk 0:01:34]} 25. Rcd1 {[%clk 0:00:12]}  Rd3+ {[%clk 0:01:32]} 26. Kh1 {[%clk 0:00:12]}  Rxd1 {[%clk 0:01:29]} 27. Rxd1 {[%clk 0:00:12]}  Qxd1+ {[%clk 0:01:28]} 28. Qg1 {[%clk 0:00:11]}  Re1 {[%clk 0:01:27]} 29. Bxf7+ {[%clk 0:00:10]}  Kxf7 {[%clk 0:01:26]} 30. Qf1 {[%clk 0:00:10]}  Rxf1+ {[%clk 0:01:26]} 31. Kg2 {[%clk 0:00:10]}  Qxf3# {[%clk 0:01:26]} 0-1


[Site "https://www.chess.com"]

[Event "Titled Tuesday Blitz November 01 Early 2022"]
[White "Gabrielian, Artur"]
[Black "Lopez, Henry"]
[WhiteFideId "4131002"]
[BlackFideId "5203830"]
[WhiteElo "2432"]
[BlackElo "2177"]
[Result "1-0"]
[Round "10"]
[TimeControl "180+1"]
[Date "2022.11.01"]
[WhiteClock "0:01:37"]
[BlackClock "0:00:48"]

1. d4 {[%clk 0:03:00]}  d5 {[%clk 0:02:57]} 2. c4 {[%clk 0:03:00]}  c6 {[%clk 0:02:57]} 3. Nf3 {[%clk 0:03:00]}  Nf6 {[%clk 0:02:56]} 4. Nc3 {[%clk 0:03:00]}  dxc4 {[%clk 0:02:56]} 5. a4 {[%clk 0:02:59]}  Bf5 {[%clk 0:02:56]} 6. e3 {[%clk 0:02:55]}  e6 {[%clk 0:02:56]} 7. Bxc4 {[%clk 0:02:55]}  Bb4 {[%clk 0:02:56]} 8. O-O {[%clk 0:02:54]}  Nbd7 {[%clk 0:02:56]} 9. Qe2 {[%clk 0:02:54]}  O-O {[%clk 0:02:55]} 10. e4 {[%clk 0:02:53]}  Bg4 {[%clk 0:02:50]} 11. h3 {[%clk 0:02:52]}  Bh5 {[%clk 0:02:50]} 12. e5 {[%clk 0:02:43]}  Nd5 {[%clk 0:02:50]} 13. Nxd5 {[%clk 0:02:43]}  cxd5 {[%clk 0:02:49]} 14. Bd3 {[%clk 0:02:43]}  Bg6 {[%clk 0:02:43]} 15. Ng5 {[%clk 0:02:23]}  Re8 {[%clk 0:02:30]} 16. f4 {[%clk 0:02:15]}  a6 {[%clk 0:02:20]} 17. Be3 {[%clk 0:02:11]}  Rc8 {[%clk 0:02:18]} 18. g4 {[%clk 0:02:09]}  h6 {[%clk 0:02:10]} 19. Nf3 {[%clk 0:02:04]}  Be4 {[%clk 0:01:54]} 20. f5 {[%clk 0:01:58]}  Qa5 {[%clk 0:01:38]} 21. f6 {[%clk 0:01:54]}  Bf8 {[%clk 0:01:31]} 22. fxg7 {[%clk 0:01:54]}  Bxg7 {[%clk 0:01:31]} 23. Rf2 {[%clk 0:01:50]}  Qb4 {[%clk 0:01:23]} 24. Raf1 {[%clk 0:01:49]}  Bxd3 {[%clk 0:01:22]} 25. Qxd3 {[%clk 0:01:49]}  Qc4 {[%clk 0:01:22]} 26. Qd2 {[%clk 0:01:47]}  Kh7 {[%clk 0:00:48]} 27. Ne1 {[%clk 0:01:37]} 1-0


[Site "https://www.chess.com"]

[Event "Titled Tuesday Blitz November 01 Early 2022"]
[White "Gheorghiu, Calin"]
[Black "Horcajuelo Rocamora, Martin"]
[WhiteFideId "1200305"]
[BlackFideId "24573027"]
[WhiteElo "2225"]
[BlackElo "2094"]
[Result "1-0"]
[Round "10"]
[TimeControl "180+1"]
[Date "2022.11.02"]
[WhiteClock "0:00:41"]
[BlackClock "0:00:55"]

1. d4 {[%clk 0:03:00]}  Nf6 {[%clk 0:02:34]} 2. Bf4 {[%clk 0:02:58]}  g6 {[%clk 0:02:33]} 3. Nf3 {[%clk 0:02:56]}  Bg7 {[%clk 0:02:32]} 4. c3 {[%clk 0:02:57]}  d6 {[%clk 0:02:32]} 5. Nbd2 {[%clk 0:02:57]}  O-O {[%clk 0:02:30]} 6. e4 {[%clk 0:02:58]}  Nbd7 {[%clk 0:02:30]} 7. Be2 {[%clk 0:02:56]}  e5 {[%clk 0:02:31]} 8. Be3 {[%clk 0:02:57]}  Re8 {[%clk 0:02:28]} 9. Qc2 {[%clk 0:02:55]}  c6 {[%clk 0:02:26]} 10. O-O {[%clk 0:02:52]}  Qe7 {[%clk 0:02:24]} 11. Bd3 {[%clk 0:02:47]}  b6 {[%clk 0:02:10]} 12. Rfe1 {[%clk 0:02:37]}  Bb7 {[%clk 0:02:09]} 13. a4 {[%clk 0:02:37]}  a5 {[%clk 0:02:02]} 14. Nc4 {[%clk 0:02:36]}  Ng4 {[%clk 0:01:53]} 15. Bg5 {[%clk 0:02:31]}  f6 {[%clk 0:01:41]} 16. Bh4 {[%clk 0:02:30]}  g5 {[%clk 0:01:38]} 17. Bg3 {[%clk 0:02:29]}  d5 {[%clk 0:01:37]} 18. exd5 {[%clk 0:02:19]}  cxd5 {[%clk 0:01:38]} 19. Bxh7+ {[%clk 0:02:18]}  Kh8 {[%clk 0:01:38]} 20. Bf5 {[%clk 0:02:03]}  Nh6 {[%clk 0:01:26]} 21. Bxd7 {[%clk 0:02:02]}  Qxd7 {[%clk 0:01:27]} 22. Nxb6 {[%clk 0:02:02]}  Qc6 {[%clk 0:01:23]} 23. Nxa8 {[%clk 0:02:02]}  e4 {[%clk 0:01:22]} 24. Nd2 {[%clk 0:01:55]}  f5 {[%clk 0:01:21]} 25. Nc7 {[%clk 0:01:53]}  Re7 {[%clk 0:01:19]} 26. c4 {[%clk 0:01:01]}  f4 {[%clk 0:01:16]} 27. Nxd5 {[%clk 0:01:01]}  Rd7 {[%clk 0:01:13]} 28. Qb3 {[%clk 0:00:47]}  fxg3 {[%clk 0:01:11]} 29. hxg3 {[%clk 0:00:47]}  Bxd4 {[%clk 0:01:12]} 30. Nxe4 {[%clk 0:00:46]}  Kg7 {[%clk 0:01:03]} 31. Rad1 {[%clk 0:00:46]}  Ba7 {[%clk 0:00:58]} 32. Nxg5 {[%clk 0:00:43]}  Bxf2+ {[%clk 0:00:56]} 33. Kxf2 {[%clk 0:00:43]}  Qc5+ {[%clk 0:00:57]} 34. Qe3 {[%clk 0:00:42]}  Ng4+ {[%clk 0:00:57]} 35. Kg1 {[%clk 0:00:41]}  Nxe3 {[%clk 0:00:57]} 36. Ne6+ {[%clk 0:00:40]}  Kg6 {[%clk 0:00:55]} 37. Nxc5 {[%clk 0:00:41]} 1-0


[Site "https://www.chess.com"]

[Event "Titled Tuesday Blitz November 01 Early 2022"]
[White "Goriatchkin, Jouri"]
[Black "Mihailidis, Anastasios"]
[WhiteFideId "4120183"]
[BlackFideId "4205588"]
[WhiteElo "1876"]
[BlackElo "2312"]
[Result "0-1"]
[Round "10"]
[TimeControl "180+1"]
[Date "2022.11.02"]
[WhiteClock "0:00:02"]
[BlackClock "0:00:05"]

1. d4 {[%clk 0:03:00]}  d5 {[%clk 0:02:59]} 2. Bf4 {[%clk 0:02:58]}  Nf6 {[%clk 0:02:58]} 3. e3 {[%clk 0:02:57]}  e6 {[%clk 0:02:58]} 4. Nf3 {[%clk 0:02:57]}  Bd6 {[%clk 0:02:57]} 5. Bxd6 {[%clk 0:02:52]}  Qxd6 {[%clk 0:02:58]} 6. c4 {[%clk 0:02:52]}  dxc4 {[%clk 0:02:55]} 7. Nc3 {[%clk 0:02:46]}  O-O {[%clk 0:02:52]} 8. Bxc4 {[%clk 0:02:45]}  c5 {[%clk 0:02:51]} 9. O-O {[%clk 0:02:45]}  cxd4 {[%clk 0:02:50]} 10. Qxd4 {[%clk 0:02:42]}  Qe7 {[%clk 0:02:47]} 11. Rfd1 {[%clk 0:02:39]}  Nc6 {[%clk 0:02:43]} 12. Qh4 {[%clk 0:02:31]}  b6 {[%clk 0:02:27]} 13. e4 {[%clk 0:02:21]}  Qc5 {[%clk 0:01:41]} 14. Bb3 {[%clk 0:01:53]}  Ne5 {[%clk 0:01:31]} 15. Nxe5 {[%clk 0:01:07]}  Qxe5 {[%clk 0:01:29]} 16. Bc2 {[%clk 0:01:07]}  Bb7 {[%clk 0:01:24]} 17. f4 {[%clk 0:00:43]}  Qh5 {[%clk 0:01:03]} 18. Qxh5 {[%clk 0:00:41]}  Nxh5 {[%clk 0:01:03]} 19. g3 {[%clk 0:00:41]}  Nf6 {[%clk 0:01:01]} 20. Kf2 {[%clk 0:00:41]}  Ng4+ {[%clk 0:00:56]} 21. Kg1 {[%clk 0:00:17]}  Rfd8 {[%clk 0:00:49]} 22. Rxd8+ {[%clk 0:00:17]}  Rxd8 {[%clk 0:00:48]} 23. Rd1 {[%clk 0:00:18]}  Rxd1+ {[%clk 0:00:47]} 24. Bxd1 {[%clk 0:00:18]}  Ne3 {[%clk 0:00:46]} 25. Kf2 {[%clk 0:00:19]}  Nxd1+ {[%clk 0:00:44]} 26. Nxd1 {[%clk 0:00:19]}  Bxe4 {[%clk 0:00:44]} 27. Ke3 {[%clk 0:00:19]}  Bc6 {[%clk 0:00:43]} 28. Kd4 {[%clk 0:00:17]}  Kf8 {[%clk 0:00:42]} 29. Ne3 {[%clk 0:00:17]}  Ke7 {[%clk 0:00:42]} 30. f5 {[%clk 0:00:17]}  f6 {[%clk 0:00:30]} 31. fxe6 {[%clk 0:00:12]}  Kxe6 {[%clk 0:00:31]} 32. b4 {[%clk 0:00:09]}  h5 {[%clk 0:00:28]} 33. Nc2 {[%clk 0:00:06]}  g5 {[%clk 0:00:20]} 34. Na3 {[%clk 0:00:04]}  Bb7 {[%clk 0:00:13]} 35. Nb5 {[%clk 0:00:04]}  a6 {[%clk 0:00:12]} 36. Nc3 {[%clk 0:00:03]}  Bc6 {[%clk 0:00:11]} 37. a4 {[%clk 0:00:02]}  a5 {[%clk 0:00:10]} 38. b5 {[%clk 0:00:02]}  Bb7 {[%clk 0:00:09]} 39. Na2 {[%clk 0:00:02]}  Bd5 {[%clk 0:00:08]} 40. Nc1 {[%clk 0:00:03]}  Bf3 {[%clk 0:00:07]} 41. Nb3 {[%clk 0:00:03]}  Bd1 {[%clk 0:00:07]} 42. Nd2 {[%clk 0:00:02]}  Bxa4 {[%clk 0:00:06]} 43. Kc4 {[%clk 0:00:02]}  Bd1 {[%clk 0:00:05]} 44. Ne4 {[%clk 0:00:01]}  Be2+ {[%clk 0:00:05]} 45. Kc3 {[%clk 0:00:02]}  Bxb5 {[%clk 0:00:05]} 0-1


[Site "https://www.chess.com"]